bitfinex/quotes_SOLUSD_20250531
["timestamp","ask_amount","ask_price","bid_price","bid_amount"]
[1748687333929,12.20443183,153.82,153.77,18.70755334]
[1748687335337,12.20443183,153.83,153.77,18.70755334]
[1748687336423,12.20443183,153.82,153.77,18.70755334]
[1748687336740,12.20443183,153.82,153.77,6.50312151]
[1748687337728,18.7056428,153.82,153.76,49.01083331]
[1748687338036,12.20443183,153.82,153.77,12.20443183]
[1748687338425,12.20443183,153.82,153.76,61.21526514]
[1748687339020,18.70581725,153.82,153.76,61.21526514]
[1748687339233,12.20443183,153.81,153.76,61.21526514]
[1748687339541,18.70581725,153.82,153.76,61.21526514]
[1748687340142,12.20443183,153.81,153.76,20.25526514]
[1748687340435,18.70581725,153.82,153.76,20.25526514]
[1748687341042,12.20443183,153.81,153.76,20.25526514]
[1748687341830,12.20443183,153.82,153.77,12.3465934]
[1748687342035,10.98,153.86,153.77,12.3465934]
[1748687342036,29.68398259,153.86,153.8,12.20443183]
[1748687342337,12.20443183,153.81,153.76,1.5472]
[1748687342543,12.20443183,153.81,153.76,13.75163183]
[1748687343821,12.20443183,153.82,153.77,18.70765092]
[1748687344921,12.20443183,153.84,153.78,12.20443183]
[1748687345128,12.20443183,153.83,153.77,6.50321909]
[1748687345435,12.20443183,153.83,153.78,12.20443183]
[1748687345938,12.20443183,153.83,153.79,6.50237336]
[1748687347335,12.20443183,153.85,153.8,12.20443183]
[1748687348217,23.18443183,153.86,153.8,12.20443183]
[1748687348622,23.18443183,153.86,153.81,12.20443183]
[1748687348828,12.20443183,153.86,153.81,12.20443183]
[1748687349827,12.20443183,153.86,153.8,53.14443183]
[1748687350032,12.20443183,153.86,153.8,47.44178263]
[1748687350033,12.20443183,153.85,153.8,47.44178263]
[1748687350215,12.20443183,153.84,153.8,47.44178263]
[1748687350417,12.20443183,153.82,153.8,40.94]
[1748687350730,12.20443183,153.83,153.78,18.70697721]
[1748687352435,18.70512797,153.83,153.78,18.70697721]
[1748687352633,12.20443183,153.82,153.77,18.70754965]
[1748687352823,12.20443183,153.82,153.77,6.50311782]
[1748687353542,12.20443183,153.81,153.77,6.50311782]
[1748687354429,12.20443183,153.81,153.76,20.25510336]
[1748687355224,18.70554594,153.82,153.76,20.25510336]
[1748687356346,12.20443183,153.82,153.76,20.25510336]
[1748687356829,12.20443183,153.82,153.77,0.14216157]
[1748687357033,12.20443183,153.87,153.81,12.20443183]
[1748687357956,12.20443183,153.87,153.82,6.50110518]
[1748687358531,12.20443183,153.86,153.82,6.50110518]
[1748687360332,12.20443183,153.88,153.82,18.70553701]
[1748687361662,12.20443183,153.87,153.82,18.70553701]
[1748687362863,12.20443183,153.86,153.81,18.70578695]
[1748687365062,18.70394168,153.86,153.81,18.70578695]
[1748687365227,12.20443183,153.86,153.81,18.70578695]
[1748687365736,12.20443183,153.84,153.79,12.20443183]
[1748687366043,12.20443183,153.84,153.79,53.12443183]
[1748687366553,12.20443183,153.84,153.78,12.20443183]
[1748687366969,18.70490366,153.84,153.78,18.70722803]
[1748687367160,18.70490366,153.84,153.79,12.20443183]
[1748687368259,18.70490366,153.84,153.79,18.70678533]
[1748687370379,12.20443183,153.87,153.82,12.20443183]
[1748687370555,28.88833116,153.9,153.83,12.20443183]
[1748687370556,12.20443183,153.89,153.83,12.20443183]
[1748687371086,12.20443183,153.89,153.84,12.20443183]
[1748687371464,18.70282452,153.89,153.83,6.50068257]
[1748687371774,18.70282452,153.89,153.83,18.7051144]
[1748687373078,12.20443183,153.87,153.82,61.14917691]
[1748687373388,12.20443183,153.86,153.82,40.92]
[1748687373763,12.20443183,153.85,153.82,40.92]
[1748687375184,18.70430963,153.85,153.82,40.92]
[1748687376095,12.20443183,153.84,153.79,18.70666981]
[1748687376254,18.70430963,153.85,153.79,18.70666981]
[1748687379183,18.70396257,153.86,153.79,6.50223798]
[1748687379385,18.70396257,153.86,153.8,12.20443183]
[1748687379590,12.20443183,153.85,153.8,12.20443183]
[1748687380173,12.20443183,153.84,153.79,18.70666981]
[1748687380374,12.20443183,153.84,153.79,6.50223798]
[1748687380575,12.20443183,153.84,153.79,18.70666981]
[1748687380885,12.20443183,153.85,153.79,18.70666981]
[1748687381480,13.84193183,153.88,153.82,12.20443183]
[1748687381779,12.20443183,153.87,153.82,12.20443183]
[1748687381962,18.70309354,153.88,153.82,12.20443183]
[1748687383099,18.70309354,153.88,153.83,6.50068257]
[1748687383954,12.20443183,153.88,153.83,6.50068257]
[1748687385160,18.70271222,153.89,153.83,18.7051144]
[1748687385360,12.20443183,153.88,153.83,18.7051144]
[1748687385985,12.20443183,153.87,153.83,6.50068257]
[1748687386485,18.70311387,153.88,153.83,6.50068257]
[1748687388900,12.20443183,153.87,153.83,6.50068257]
[1748687389815,12.20443183,153.88,153.83,18.7051144]
[1748687390479,12.20443183,153.87,153.82,6.50099716]
[1748687390900,18.70352235,153.87,153.82,6.50099716]
[1748687391076,12.20443183,153.87,153.82,6.50099716]
[1748687391977,12.20443183,153.87,153.82,18.70542899]
[1748687393489,18.70317694,153.88,153.82,18.70542899]
[1748687394610,12.20443183,153.88,153.82,34.95819195]
[1748687394914,23.18443183,153.9,153.84,12.20443183]
[1748687395086,29.68224661,153.9,153.84,12.20443183]
[1748687395504,23.18443183,153.9,153.84,12.20443183]
[1748687396210,12.20443183,153.9,153.85,12.20443183]
[1748687396783,12.20443183,153.9,153.86,6.49941505]
[1748687399816,18.70219619,153.9,153.85,6.49967514]
[1748687399996,12.20443183,153.88,153.83,18.70475382]
[1748687401221,18.70304378,153.88,153.83,6.50032199]
[1748687401399,18.70304378,153.88,153.83,18.70475382]
[1748687401999,12.20443183,153.88,153.83,18.70475382]
[1748687402918,12.20443183,153.9,153.84,12.20443183]
[1748687403138,12.20443183,153.9,153.85,6.4998375]
[1748687403433,12.20443183,153.91,153.86,12.20443183]
[1748687404119,12.20443183,153.92,153.86,12.20443183]
[1748687405004,12.20443183,153.89,153.84,6.50014123]
[1748687405317,18.49053863,153.93,153.84,6.50014123]
[1748687405318,12.20443183,153.9,153.84,12.20443183]
[1748687405506,12.20443183,153.9,153.85,12.20443183]
[1748687405706,12.20443183,153.91,153.85,12.20443183]
[1748687406219,12.20443183,153.9,153.85,12.20443183]
[1748687406421,6.49703221,153.92,153.83,6.50056056]
[1748687406422,12.20443183,153.89,153.84,12.20443183]
[1748687407418,12.20443183,153.89,153.85,6.4998375]
[1748687407622,12.20443183,153.9,153.85,18.70426933]
[1748687407919,11.99389652,153.93,153.86,12.20443183]
[1748687407920,12.20443183,153.92,153.86,12.20443183]
[1748687408595,12.20443183,153.91,153.86,12.20443183]
[1748687409191,12.20443183,153.91,153.86,18.70347659]
[1748687410807,12.20443183,153.92,153.87,12.20443183]
[1748687411218,12.20443183,153.92,153.86,18.70347659]
[1748687412913,12.20443183,153.91,153.86,18.70347659]
[1748687413119,12.20443183,153.91,153.86,6.49904476]
[1748687413825,24.19832835,153.93,153.87,12.20443183]
[1748687414427,30.69487933,153.93,153.87,12.20443183]
[1748687414902,24.19832835,153.93,153.87,12.20443183]
[1748687415935,24.19832835,153.93,153.88,6.49857031]
[1748687416294,11.99389652,153.93,153.89,12.20443183]
[1748687416498,22.75218785,153.94,153.89,12.20443183]
[1748687416712,22.75218785,153.94,153.9,12.20443183]
[1748687417126,22.75218785,153.94,153.89,12.20443183]
[1748687417624,12.20443183,153.93,153.88,18.70300214]
[1748687418834,34.95661968,153.94,153.89,12.20443183]
[1748687419323,41.45269388,153.94,153.89,12.20443183]
[1748687419538,41.45269388,153.94,153.88,18.70300214]
[1748687420835,34.95661968,153.94,153.88,18.70300214]
[1748687421037,34.95661968,153.94,153.89,12.20443183]
[1748687421919,22.75218785,153.94,153.9,6.49772579]
[1748687426545,22.75218785,153.94,153.9,18.70215762]
[1748687426715,18.69927939,153.97,153.91,12.20443183]
[1748687427040,18.69927939,153.97,153.9,6.49772579]
[1748687427041,12.20443183,153.96,153.9,18.70215762]
[1748687427549,12.20443183,153.95,153.9,12.20443183]
[1748687427840,12.20443183,153.94,153.89,6.49804656]
[1748687428138,12.20443183,153.95,153.89,18.70247839]
[1748687429123,12.20443183,153.94,153.89,18.70247839]
[1748687429442,12.20443183,153.95,153.9,12.20443183]
[1748687429629,12.20443183,153.96,153.91,6.49730361]
[1748687429859,6.4947717,153.97,153.91,6.49730361]
[1748687429860,24.31808173,153.99,153.92,12.20443183]
[1748687430018,10.94,153.99,153.95,12.20443183]
[1748687430215,18.69798832,154.0,153.95,12.20443183]
[1748687430539,18.69798832,154.0,153.94,12.20443183]
[1748687431530,18.69798832,154.0,153.95,6.49561545]
[1748687431944,18.69798832,154.0,153.94,18.70031028]
[1748687433354,12.20443183,153.97,153.92,12.20443183]
[1748687433639,12.20443183,153.95,153.91,17.41727816]
[1748687434845,12.20443183,153.96,153.91,29.62170999]
[1748687436354,18.69922022,153.97,153.92,12.20443183]
[1748687438022,12.20443183,153.97,153.92,12.20443183]
[1748687438424,12.20443183,153.97,153.92,18.70093352]
[1748687438629,18.69925321,153.97,153.92,18.70093352]
[1748687440163,18.69925321,153.97,153.92,6.49650169]
[1748687440626,18.69925321,153.97,153.92,18.70093352]
[1748687440830,6.49434991,153.98,153.92,18.70093352]
[1748687441042,12.20443183,153.97,153.92,18.70093352]
[1748687441259,12.20443183,153.98,153.93,12.20443183]
[1748687441824,12.20443183,153.97,153.92,18.70093352]
[1748687443443,18.69928515,153.97,153.92,18.70093352]
[1748687446442,18.69928515,153.97,153.91,29.62158479]
[1748687446636,12.20443183,153.97,153.91,29.62158479]
[1748687447156,12.20443183,153.97,153.92,12.20443183]
[1748687448144,12.20443183,154.0,153.94,12.20443183]
[1748687448341,18.69811589,154.0,153.94,18.70012366]
[1748687448539,12.20443183,153.99,153.94,6.49569183]
[1748687449471,12.20443183,153.98,153.92,12.20443183]
[1748687449642,12.20443183,153.96,153.91,23.12443183]
[1748687450567,12.20443183,153.96,153.91,12.20443183]
[1748687451152,18.69946295,153.97,153.91,18.70160807]
[1748687451851,18.69946295,153.97,153.9,6.4974121]
[1748687451852,12.20443183,153.93,153.9,6.4974121]
[1748687452166,12.20443183,153.94,153.9,6.4974121]
[1748687452745,12.20443183,153.95,153.9,18.70184393]
[1748687453561,18.70008818,153.95,153.9,18.70184393]
[1748687453754,6.49565635,153.95,153.89,26.0]
[1748687453957,12.20443183,153.94,153.89,38.20443183]
[1748687454873,18.70028258,153.95,153.9,12.20443183]
[1748687457079,12.20443183,153.94,153.89,44.70243571]
[1748687458294,18.70058483,153.94,153.89,38.20443183]
[1748687458480,12.20443183,153.92,153.87,29.62330956]
[1748687459172,6.496153,153.94,153.88,12.20443183]
[1748687459173,12.20443183,153.93,153.88,12.20443183]
[1748687459772,26.0,153.96,153.89,12.20443183]
[1748687459773,18.70018509,153.95,153.89,12.20443183]
[1748687460074,18.70057211,153.94,153.89,18.70250706]
[1748687460275,12.20443183,153.94,153.89,18.70250706]
[1748687460776,18.70054297,153.94,153.89,18.70250706]
[1748687461366,12.20443183,153.93,153.88,6.49852327]
[1748687461550,12.20443183,153.93,153.88,18.7029551]
[1748687462675,18.70098068,153.93,153.88,18.7029551]
[1748687463677,18.70098068,153.93,153.88,12.20443183]
[1748687463869,12.20443183,153.91,153.87,10.92]
[1748687465188,12.20443183,153.91,153.87,40.76]
[1748687466194,6.49742939,153.91,153.87,40.76]
[1748687466397,12.20443183,153.92,153.87,59.46337213]
[1748687466689,12.20443183,153.93,153.88,12.20443183]
[1748687466878,12.20443183,153.94,153.88,12.20443183]
[1748687467293,12.20443183,153.93,153.88,12.20443183]
[1748687467473,12.20443183,153.93,153.87,59.46337213]
[1748687467678,18.70093708,153.93,153.87,59.46337213]
[1748687468481,12.20443183,153.94,153.89,12.20443183]
[1748687468793,12.20443183,153.95,153.9,12.20443183]
[1748687468977,6.49534435,153.96,153.9,12.20443183]
[1748687469179,12.20443183,153.95,153.9,12.20443183]
[1748687469371,10.92,153.98,153.91,12.3465934]
[1748687469577,12.20443183,153.98,153.93,12.20443183]
[1748687469874,12.20443183,153.98,153.94,6.49603741]
[1748687470703,12.20443183,153.99,153.94,6.49603741]
[1748687470874,12.20443183,153.99,153.94,18.70046924]
[1748687471393,26.971291,154.01,153.95,12.20443183]
[1748687471998,12.20443183,154.0,153.95,12.20443183]
[1748687472695,12.20443183,154.0,153.95,18.69994255]
[1748687473012,12.20443183,154.02,153.96,12.20443183]
[1748687473176,23.10443183,154.03,153.98,12.20443183]
[1748687473377,12.20443183,154.03,153.98,12.20443183]
[1748687473690,6.49197481,154.04,153.98,12.20443183]
[1748687473874,12.20443183,154.03,153.98,12.20443183]
[1748687474081,12.20443183,154.02,153.97,52.96443183]
[1748687474297,12.20443183,154.02,153.97,40.76]
[1748687474812,12.20443183,154.02,153.97,52.96443183]
[1748687475016,12.20443183,154.02,153.97,40.76]
[1748687475221,12.20443183,154.0,153.97,40.76]
[1748687475517,12.20443183,153.98,153.92,52.96443183]
[1748687475678,12.20443183,153.97,153.92,40.76]
[1748687476392,12.20443183,153.98,153.92,59.46114628]
[1748687477994,18.69891077,153.98,153.92,59.46114628]
[1748687478312,18.69891077,153.98,153.93,12.20443183]
[1748687478674,18.69891077,153.98,153.92,59.46114628]
[1748687480509,12.20443183,153.96,153.92,40.74]
[1748687481180,12.20443183,153.97,153.92,40.74]
[1748687483437,18.69936084,153.97,153.92,40.74]
[1748687484511,12.20443183,153.96,153.92,40.74]
[1748687485345,18.6996702,153.96,153.92,40.74]
[1748687485854,12.20443183,153.95,153.92,40.74]
[1748687486022,12.20443183,153.95,153.91,6.49714961]
[1748687490886,18.70032737,153.95,153.9,18.80453183]
[1748687491058,12.20443183,153.92,153.89,10.88]
[1748687491234,12.20443183,153.93,153.89,51.6]
[1748687491426,12.20443183,153.93,153.89,10.88]
[1748687492032,12.20443183,153.93,153.89,17.37811633]
[1748687495853,18.70097247,153.93,153.89,10.88]
[1748687496163,12.20443183,153.92,153.87,40.72]
[1748687497032,12.20443183,153.91,153.87,47.21887216]
[1748687497238,12.20443183,153.9,153.86,6.49924743]
[1748687497439,6.49711007,153.92,153.85,47.21966561]
[1748687497440,12.20443183,153.89,153.85,47.21966561]
[1748687498541,12.20443183,153.9,153.85,47.21966561]
[1748687499147,12.20443183,153.9,153.85,59.42409744]
[1748687499554,12.20443183,153.88,153.84,17.36011536]
[1748687499749,12.20443183,153.88,153.84,58.08011536]
[1748687499950,12.20443183,153.85,153.81,6.50152785]
[1748687500164,12.20443183,153.84,153.81,6.50152785]
[1748687503796,13.76493183,153.89,153.83,12.20443183]
[1748687504087,13.76493183,153.89,153.84,52.92443183]
[1748687504757,13.76493183,153.89,153.85,6.4998375]
[1748687504974,1.5605,153.89,153.86,12.20443183]
[1748687505183,12.20443183,153.92,153.87,12.20443183]
[1748687505383,1.5638,153.94,153.88,12.20443183]
[1748687505384,12.20443183,153.93,153.88,12.20443183]
[1748687505567,12.20443183,153.92,153.87,12.20443183]
[1748687505775,8.05984437,153.94,153.87,12.20443183]
[1748687505971,12.20443183,153.92,153.87,12.20443183]
[1748687506567,12.20443183,153.92,153.88,6.49857031]
[1748687507575,1.5638,153.94,153.88,18.70300214]
[1748687507576,12.20443183,153.93,153.88,18.70300214]
[1748687508682,12.20443183,153.93,153.88,34.94942792]
[1748687508868,12.20443183,153.94,153.89,52.92443183]
[1748687509583,12.20443183,153.96,153.91,12.20443183]
[1748687509879,12.20443183,153.97,153.92,12.20443183]
[1748687510687,13.76823183,153.98,153.92,12.20443183]
[1748687510870,12.20443183,153.97,153.93,6.49645942]
[1748687511389,13.76823183,153.98,153.93,6.49645942]
[1748687512392,12.20443183,153.97,153.93,6.49645942]
[1748687513587,12.20443183,153.98,153.93,18.70089125]
[1748687513896,12.20443183,153.99,153.94,52.90443183]
[1748687514394,12.20443183,154.0,153.94,52.90443183]
[1748687515376,12.20443183,154.0,153.95,6.49561545]
[1748687515790,12.20443183,153.99,153.95,6.49561545]
[1748687515985,12.20443183,153.98,153.95,6.49561545]
[1748687516384,27.5086,154.02,153.95,6.49561545]
[1748687516385,12.20443183,153.99,153.95,6.49561545]
[1748687518496,6.49322262,154.01,153.95,6.49561545]
[1748687518877,12.20443183,154.0,153.95,6.49561545]
[1748687519404,12.20443183,153.99,153.95,6.49561545]
[1748687522685,12.20443183,153.96,153.92,6.49688149]
[1748687523189,6.49366541,154.0,153.92,6.49688149]
[1748687523395,12.20443183,153.97,153.92,18.70131332]
[1748687524306,18.6993701,153.97,153.92,18.70131332]
[1748687524609,18.6993701,153.97,153.91,59.38159187]
[1748687524788,12.20443183,153.97,153.91,59.38159187]
[1748687526006,18.699345,153.97,153.91,59.38159187]
[1748687526308,12.20443183,153.96,153.88,10.84]
[1748687526492,12.20443183,153.91,153.85,12.20443183]
[1748687526696,12.20443183,153.89,153.84,47.18026001]
[1748687527512,12.20443183,153.88,153.84,40.68]
[1748687528518,13.84763183,153.89,153.84,47.17990063]
[1748687528809,13.84763183,153.89,153.84,59.38433246]
[1748687528810,12.20443183,153.89,153.84,59.38433246]
[1748687529685,12.20443183,153.89,153.84,47.17990063]
[1748687530112,12.20443183,153.88,153.84,47.17990063]
[1748687530992,12.20443183,153.88,153.84,40.68]
[1748687531191,12.20443183,153.88,153.84,47.18022131]
[1748687532508,44.64964886,153.92,153.82,17.34068272]
[1748687532700,12.20443183,153.86,153.82,17.34068272]
[1748687532888,12.20443183,153.86,153.82,6.50068272]
[1748687533291,12.20443183,153.84,153.82,6.50068272]
[1748687533599,12.20443183,153.84,153.81,6.50149028]
[1748687533995,12.20443183,153.83,153.79,32.50199561]
[1748687534198,1.5367,153.86,153.78,6.50266857]
[1748687534199,12.20443183,153.82,153.78,6.50266857]
[1748687534401,1.5367,153.86,153.77,10.84]
[1748687534402,18.64964886,153.85,153.77,10.84]
[1748687534598,12.20443183,153.81,153.77,17.34307761]
[1748687534906,12.20443183,153.81,153.77,6.50307761]
[1748687535791,12.20443183,153.8,153.76,6.50354689]
[1748687536192,6.50026001,153.84,153.76,6.50354689]
[1748687536389,12.20443183,153.8,153.76,6.50354689]
[1748687537188,12.20443183,153.79,153.74,12.20443183]
[1748687538012,12.20443183,153.79,153.74,18.70891992]
[1748687538218,12.20443183,153.8,153.75,12.20443183]
[1748687538718,12.20443183,153.79,153.74,18.70891992]
[1748687540500,12.20443183,153.8,153.74,18.70891992]
[1748687541110,12.20443183,153.8,153.74,6.50448809]
[1748687541414,12.20443183,153.8,153.74,18.70891992]
[1748687542416,6.50026001,153.84,153.74,18.70891992]
[1748687542606,12.20443183,153.8,153.74,18.70891992]
[1748687543219,12.20443183,153.79,153.74,18.70891992]
[1748687544201,12.20443183,153.78,153.74,6.50448809]
[1748687544721,12.20443183,153.76,153.72,0.8810729]
[1748687544898,12.20443183,153.75,153.72,0.8810729]
[1748687546204,12.20443183,153.74,153.72,0.8810729]
[1748687546421,12.20443183,153.73,153.72,0.8810729]
[1748687546618,12.20443183,153.74,153.72,0.8810729]
[1748687546922,12.20443183,153.75,153.72,7.38634848]
[1748687547104,12.20443183,153.74,153.72,0.8810729]
[1748687548924,12.20443183,153.78,153.73,12.20443183]
[1748687549297,12.20443183,153.79,153.74,40.7]
[1748687549516,12.20443183,153.79,153.74,52.90443183]
[1748687550420,12.20443183,153.79,153.75,6.50406504]
[1748687554620,18.70687823,153.79,153.74,12.20443183]
[1748687554929,12.20443183,153.77,153.73,40.7]
[1748687555119,12.20443183,153.77,153.72,7.38625]
[1748687555331,6.5024464,153.79,153.72,7.38625]
[1748687555502,12.20443183,153.77,153.72,7.38625]
[1748687555701,12.20443183,153.77,153.72,19.59068183]
[1748687556701,18.70767954,153.77,153.72,19.59068183]
[1748687556907,12.20443183,153.77,153.72,19.59068183]
[1748687557730,12.20443183,153.78,153.72,19.59068183]
[1748687557931,12.20443183,153.82,153.77,12.20443183]
[1748687558114,12.20443183,153.82,153.74,6.50448809]
[1748687558115,148.54385003,153.85,153.78,12.20443183]
[1748687558312,12.20443183,153.84,153.79,12.20443183]
[1748687559013,12.20443183,153.84,153.78,12.20443183]
[1748687559615,12.20443183,153.83,153.78,12.20443183]
[1748687559822,12.20443183,153.83,153.77,12.20443183]
[1748687560207,12.20443183,153.83,153.78,6.5027962]
[1748687560524,12.20443183,153.82,153.76,52.90443183]
[1748687560725,12.20443183,153.83,153.77,18.70751697]
[1748687560931,18.70512138,153.83,153.77,18.70751697]
[1748687561117,12.20443183,153.82,153.77,18.70751697]
[1748687561807,12.20443183,153.81,153.76,47.20350509]
[1748687562316,12.20443183,153.81,153.76,59.40793692]
[1748687562517,18.70565316,153.82,153.76,59.40793692]
[1748687563333,12.20443183,153.81,153.76,59.40793692]
[1748687563507,18.70601344,153.81,153.75,70.20838248]
[1748687564131,12.20443183,153.8,153.75,58.00395065]
[1748687564433,12.20443183,153.79,153.75,58.00395065]
[1748687564631,12.20443183,153.79,153.75,47.18395065]
[1748687565237,12.20443183,153.8,153.75,47.18395065]
[1748687565830,12.20443183,153.8,153.74,12.20443183]
[1748687566130,12.20443183,153.8,153.72,53.76550473]
[1748687566131,12.20443183,153.77,153.72,53.76550473]
[1748687566319,12.20443183,153.78,153.73,6.50483126]
[1748687566736,12.20443183,153.77,153.72,0.8810729]
[1748687566936,12.20443183,153.78,153.73,12.20443183]
[1748687567236,12.20443183,153.78,153.74,6.50448809]
[1748687567414,12.20443183,153.78,153.73,18.70917981]
[1748687567614,1.5291,153.8,153.75,12.20443183]
[1748687567817,12.20443183,153.8,153.75,12.20443183]
[1748687568018,12.20443183,153.78,153.73,6.50474798]
[1748687569018,18.70734597,153.78,153.73,18.70917981]
[1748687569522,12.20443183,153.78,153.73,18.70917981]
[1748687572024,12.20443183,153.79,153.73,18.70917981]
[1748687572246,6.50140237,153.82,153.76,12.20443183]
[1748687572538,18.7058342,153.82,153.76,12.20443183]
[1748687572706,18.7058342,153.82,153.74,26.0]
[1748687572707,12.20443183,153.81,153.75,12.20443183]
[1748687572911,12.20443183,153.81,153.74,26.0]
[1748687573232,12.20443183,153.8,153.75,6.50406504]
[1748687573610,12.20443183,153.79,153.75,6.50406504]
[1748687574014,12.20443183,153.79,153.73,28.46670984]
[1748687574015,12.20443183,153.79,153.74,6.50438755]
[1748687574230,12.20443183,153.79,153.74,18.70881938]
[1748687576041,12.20443183,153.8,153.74,18.70881938]
[1748687576243,12.20443183,153.81,153.75,12.20443183]
[1748687576436,12.20443183,153.81,153.76,12.20443183]
[1748687576641,12.20443183,153.81,153.75,12.20443183]
[1748687576815,18.70606488,153.81,153.75,12.20443183]
[1748687577015,12.20443183,153.79,153.74,18.70881938]
[1748687577229,12.20443183,153.79,153.74,44.70881938]
[1748687577626,12.20443183,153.8,153.74,44.70881938]
[1748687578243,18.70645946,153.8,153.74,44.70881938]
[1748687578947,6.5016576,153.81,153.74,44.70881938]
[1748687579134,12.20443183,153.8,153.74,44.70881938]
[1748687580117,18.70669755,153.8,153.74,44.70881938]
[1748687580321,18.70669755,153.8,153.73,6.50481788]
[1748687580517,12.20443183,153.78,153.73,47.18481788]
[1748687580752,12.20443183,153.78,153.73,40.68]
[1748687581149,12.20443183,153.77,153.73,40.68]
[1748687582236,12.20443183,153.77,153.73,47.18475561]
[1748687583164,29.46964886,153.81,153.73,40.68]
[1748687583327,12.20443183,153.79,153.73,59.38922887]
[1748687583530,10.82,153.81,153.76,12.20443183]
[1748687583853,12.20443183,153.82,153.76,12.20443183]
[1748687584248,12.20443183,153.81,153.76,6.50326522]
[1748687584643,27.636,153.84,153.76,6.50326522]
[1748687584950,12.20443183,153.81,153.76,6.50326522]
[1748687585140,12.20443183,153.8,153.76,6.50326522]
[1748687586155,12.20443183,153.81,153.76,6.50326522]
[1748687588836,12.20443183,153.81,153.76,18.70769705]
[1748687589032,12.20443183,153.82,153.77,0.14216157]
[1748687589249,12.20443183,153.84,153.79,12.20443183]
[1748687589441,12.20443183,153.83,153.78,12.20443183]
[1748687589639,12.20443183,153.83,153.77,40.66]
[1748687589854,12.20443183,153.82,153.77,52.86443183]
[1748687590266,144.22370377,153.85,153.77,40.66]
[1748687590267,12.20443183,153.81,153.77,40.66]
[1748687590561,12.20443183,153.82,153.77,12.20443183]
[1748687590743,12.20443183,153.81,153.76,61.02079705]
[1748687591152,12.20443183,153.81,153.76,20.36079705]
[1748687591739,12.20443183,153.8,153.75,12.20443183]
[1748687591944,12.20443183,153.8,153.74,18.70859482]
[1748687592761,12.20443183,153.8,153.75,18.70807956]
[1748687593562,26.0,153.83,153.76,12.20443183]
[1748687593761,12.20443183,153.82,153.77,12.20443183]
[1748687593939,137.72385003,153.85,153.78,12.20443183]
[1748687594145,137.72385003,153.85,153.79,12.20443183]
[1748687594146,12.20443183,153.84,153.79,12.20443183]
[1748687594946,12.20443183,153.84,153.79,18.70648171]
[1748687597166,12.20443183,153.83,153.79,6.50204988]
[1748687597949,12.20443183,153.83,153.78,18.70707786]
[1748687598143,18.70524267,153.83,153.78,12.20443183]
[1748687598350,12.20443183,153.82,153.77,18.70753747]
[1748687599349,18.70553946,153.82,153.77,18.70753747]
[1748687599664,12.20443183,153.81,153.76,18.70790291]
[1748687602954,11.77947234,153.86,153.8,12.20443183]
[1748687603173,30.48346764,153.86,153.81,12.20443183]
[1748687603503,23.98390417,153.86,153.81,12.20443183]
[1748687603788,11.77947234,153.86,153.82,18.70553701]
[1748687605050,11.77947234,153.86,153.82,34.95829997]
[1748687605258,9.12249952,153.89,153.85,12.20443183]
[1748687605564,9.12249952,153.89,153.86,12.20443183]
[1748687605962,9.12249952,153.89,153.85,12.20443183]
[1748687607271,9.12249952,153.89,153.86,6.49941505]
[1748687609576,6.49731814,153.91,153.86,18.70384688]
[1748687609577,18.70178918,153.91,153.86,18.70384688]
[1748687609773,18.70178918,153.91,153.86,6.49941505]
[1748687610384,12.20443183,153.91,153.86,6.49941505]
[1748687610769,18.70189251,153.91,153.85,18.70413932]
[1748687613288,12.20443183,153.9,153.85,12.20443183]
[1748687613584,12.20443183,153.89,153.84,25.07879922]
[1748687614176,6.49688149,153.92,153.84,25.07879922]
[1748687614365,12.20443183,153.9,153.85,12.20443183]
[1748687614778,12.20443183,153.89,153.84,12.87436739]
[1748687614989,12.20443183,153.89,153.84,25.07879922]
[1748687615873,18.70284501,153.89,153.84,12.20443183]
[1748687616191,12.20443183,153.88,153.83,13.79183183]
[1748687616484,12.20443183,153.88,153.82,100.00443183]
[1748687616665,12.20443183,153.87,153.82,87.8]
[1748687616864,6.49841318,153.89,153.82,87.8]
[1748687616865,12.20443183,153.86,153.82,87.8]
[1748687617065,12.20443183,153.87,153.82,94.30106044]
[1748687617296,12.20443183,153.87,153.82,6.50106044]
[1748687617792,12.20443183,153.87,153.81,18.70590839]
[1748687618004,12.20443183,153.87,153.82,12.20443183]
[1748687618373,12.20443183,153.88,153.82,12.20443183]
[1748687618589,12.20443183,153.88,153.83,12.20443183]
[1748687618789,18.70275415,153.89,153.83,12.20443183]
[1748687619194,12.20443183,153.89,153.84,12.20443183]
[1748687619519,18.7022238,153.9,153.84,12.20443183]
[1748687619670,12.20443183,153.89,153.84,12.20443183]
[1748687620365,18.70280583,153.89,153.84,18.70445466]
[1748687620585,18.70280583,153.89,153.83,18.7049605]
[1748687621013,6.498374,153.89,153.83,18.7049605]
[1748687621217,12.20443183,153.88,153.83,18.7049605]
[1748687621771,18.70305866,153.88,153.83,18.7049605]
[1748687622282,6.49862683,153.88,153.83,18.7049605]
[1748687625492,18.70272815,153.89,153.83,18.7049605]
[1748687628811,18.70272815,153.89,153.83,12.20443183]
[1748687628812,12.20443183,153.88,153.83,12.20443183]